fUST/lending_fUST_20251215
["ID","MTS","AMOUNT","RATE_DAILY","PERIOD"]
[398529464,1765792338748,150.02,0.000109,2]
[398529465,1765792339107,150.02,0.000109,2]
[398529466,1765792339384,150.02,0.00011,2]
[398529467,1765792339659,150.02,0.000111,2]
[398529468,1765792340049,150.02,0.000112,2]
[398529469,1765792340385,150.02,0.000113,2]
[398529470,1765792340687,150.02,0.000114,2]
[398529471,1765792340952,150.02,0.000115,2]
[398529472,1765792341371,150.02,0.000115,2]
[398529473,1765792341998,37.00479471,0.000116,2]
[398529474,1765792342020,113.01520529,0.000116,2]
[398529475,1765792363157,4362.52345358,0.00011613,2]
[398529476,1765792391943,152.83,0.000101,2]
[398529477,1765792392333,152.83,0.000102,2]
[398529478,1765792393274,152.83,0.000104,2]
[398529479,1765792393702,152.83,0.000105,2]
[398529480,1765792393974,152.83,0.000106,2]
[398529481,1765792394303,152.83,0.000108,2]
[398529482,1765792394582,152.83,0.000109,2]
[398529483,1765792394852,152.83,0.00011,2]
[398529484,1765792395188,152.83,0.000112,2]
[398529485,1765792395510,152.83,0.000113,2]
[398529486,1765792395819,152.83,0.000114,2]
[398529487,1765792396575,152.83,0.000116,2]
[398529488,1765792397173,152.83,0.000117,2]
[398529489,1765792409647,153.63,7.076e-05,2]
[398529490,1765792410440,307.26,7.72e-05,2]
[398529491,1765792410775,460.88,8.363e-05,2]
[398529492,1765792411049,614.51,9.006e-05,2]
[398529493,1765792411342,768.14,9.65e-05,2]
[398529494,1765792411698,921.77,0.00010293,2]
[398529495,1765792412117,1075.39,0.00010936,2]
[398529496,1765792412722,1229.02,0.0001158,2]
[398529497,1765792438885,2482.62,0.000117,2]
[398529498,1765792438907,2517.38,0.000117,2]
[398529499,1765792448755,153.28,0.000101,2]
[398529500,1765792449741,153.28,0.000102,2]
[398529501,1765792450035,153.28,0.000104,2]
[398529502,1765792450349,153.28,0.000105,2]
[398529503,1765792450725,153.28,0.000107,2]
[398529504,1765792450985,153.28,0.000108,2]
[398529505,1765792451265,153.28,0.000109,2]
[398529506,1765792451759,153.28,0.000111,2]
[398529507,1765792451925,153.28,0.000112,2]
[398529508,1765792452205,153.28,0.000114,2]
[398529509,1765792452502,153.28,0.000115,2]
[398529510,1765792452862,153.28,0.000116,2]
[398529511,1765792488286,150.0,7.86e-05,2]
[398529512,1765792488683,186.37,8.575e-05,2]
[398529513,1765792489086,279.55,9.289e-05,2]
[398529514,1765792489676,372.74,0.00010004,2]
[398529515,1765792489907,465.92,0.00010718,2]
[398529516,1765792490331,559.11,0.00011433,2]
[398529517,1765792492083,3629.58,0.000117,2]
[398529518,1765792492106,1370.42,0.000117,2]
[398529519,1765792508590,153.29,0.000101,2]
[398529520,1765792509159,153.29,0.000103,2]
[398529521,1765792509286,153.29,0.000106,2]
[398529522,1765792509505,153.29,0.000108,2]
[398529523,1765792509804,153.29,0.000111,2]
[398529524,1765792510111,153.29,0.000113,2]
[398529525,1765792510391,153.29,0.000116,2]
[398529526,1765792516684,5000.0,0.000117,2]
[398529527,1765792540270,2556.56,0.000117,2]
[398529528,1765792540293,2443.44,0.000117,2]
[398529529,1765792563260,5000.0,0.000117,2]
[398529530,1765792565027,150.0,7.839e-05,2]
[398529531,1765792565431,150.0,8.551e-05,2]
[398529532,1765792565836,202.67,9.264e-05,2]
[398529533,1765792566725,270.22,9.977e-05,2]
[398529534,1765792566897,337.78,0.00010689,2]
[398529535,1765792567294,405.33,0.00011402,2]
[398529536,1765792567480,153.28,0.000101,2]
[398529537,1765792567856,153.28,0.000105,2]
[398529538,1765792568254,153.28,0.00011,2]
[398529539,1765792568841,153.28,0.000114,2]
[398529540,1765792586331,427.45,0.000117,2]
[398529541,1765792586354,4572.55,0.000117,2]
[398529542,1765792609480,5000.0,0.000117,2]
[398529543,1765792625240,153.28,0.000101,2]
[398529544,1765792625568,153.28,0.000109,2]
[398529545,1765792626216,120.9,0.000117,2]
[398529546,1765792626240,32.38,0.000117,2]
[398529547,1765792633097,5000.0,0.000117,2]
[398529548,1765792642255,150.0,7.785e-05,2]
[398529549,1765792642698,150.0,8.493e-05,2]
[398529550,1765792643110,150.0,9.201e-05,2]
[398529551,1765792643519,193.04,9.909e-05,2]
[398529552,1765792643908,241.31,0.00010616,2]
[398529553,1765792644326,289.57,0.00011324,2]
[398529554,1765792656014,3793.71,0.000117,2]
[398529555,1765792656036,1206.29,0.000117,2]
[398529556,1765792679806,5000.0,0.000117,2]
[398529557,1765792685825,153.29,0.000101,2]
[398529558,1765792703423,3640.43,0.000117,2]
[398529559,1765792703447,1359.57,0.000117,2]
[398529560,1765792717098,150.0,7.788e-05,2]
[398529561,1765792717619,150.0,8.497e-05,2]
[398529562,1765792718047,150.0,9.205e-05,2]
[398529563,1765792718488,176.56,9.913e-05,2]
[398529564,1765792718834,220.7,0.00010621,2]
[398529565,1765792719251,264.83,0.00011329,2]
[398529566,1765792727221,5000.0,0.000117,2]
[398529567,1765792743959,153.29,0.0001,2]
[398529568,1765792750113,5000.0,0.000117,2]
[398529569,1765792766543,5000.0,0.000117,2]
[398529570,1765792774281,5000.0,0.000117,2]
[398529571,1765792790341,0.01,7.797e-05,2]
[398529572,1765792790364,149.99,7.797e-05,2]
[398529573,1765792790763,150.0,8.506e-05,2]
[398529574,1765792791172,150.0,9.215e-05,2]
[398529575,1765792791561,151.76,9.924e-05,2]
[398529576,1765792791955,189.7,0.00010632,2]
[398529577,1765792792358,227.64,0.00011341,2]
[398529578,1765792798366,5000.0,0.000117,2]
[398529579,1765792802403,152.4,0.0001,2]
[398529580,1765792802679,152.4,0.000103,2]
[398529581,1765792803112,152.4,0.000107,2]
[398529582,1765792803484,152.4,0.00011,2]
[398529583,1765792803831,152.4,0.000113,2]
[398529584,1765792804244,152.4,0.000117,2]
[398529586,1765792821299,3066.52,0.000117,2]
[398529587,1765792821322,1933.48,0.000117,2]
[398529588,1765792844355,5000.0,0.000117,2]
[398529589,1765792860611,2076.32339966,0.000117,2]
[398529590,1765792863203,150.0,7.789e-05,2]
[398529591,1765792863611,150.0,8.497e-05,2]
[398529592,1765792864050,150.0,9.205e-05,2]
[398529593,1765792864498,150.0,9.913e-05,2]
[398529594,1765792864954,150.0,0.00010621,2]
[398529595,1765792865368,150.0,0.00011329,2]
[398529596,1765792865890,90.20660034,0.0001,2]
[398529597,1765792865920,62.19339966,0.0001,2]
[398529598,1765792866258,152.4,0.000107,2]
[398529599,1765792866731,152.4,0.000113,2]
[398529600,1765792869077,5000.0,0.000117,2]
[398529601,1765792892852,4633.01660034,0.000117,2]
[398529602,1765792892875,366.98339966,0.000117,2]
[398529603,1765792909362,220.6799908,0.00011324,2]
[398529604,1765792917314,5000.0,0.000117,2]
[398529605,1765792924477,152.39,0.0001,2]
[398529606,1765792924805,152.39,0.000113,2]
[398529607,1765792933636,150.0,7.078e-05,2]
[398529608,1765792934046,150.0,7.722e-05,2]
[398529609,1765792934484,150.0,8.365e-05,2]
[398529610,1765792934901,150.0,9.008e-05,2]
[398529611,1765792935307,150.0,9.652e-05,2]
[398529612,1765792935713,150.0,0.00010295,2]
[398529613,1765792936127,150.0,0.00010939,2]
[398529614,1765792937186,150.0,0.00011582,2]
[398529615,1765792940473,2907.56660954,0.000117,2]
[398529616,1765792940500,2092.43339046,0.000117,2]
[398529617,1765792964041,5000.0,0.000117,2]
[398529618,1765792984423,152.4,0.0001,2]
[398529619,1765793007665,2755.17660954,0.000117,2]
[398529620,1765793007690,2244.82339046,0.000117,2]
[398529621,1765793031281,5000.0,0.000117,2]
[398529622,1765793054844,2755.18660954,0.000117,2]
[398529624,1765793084548,378.71529877,0.00011274,2]
[398529625,1765793193009,150.0,7.104e-05,2]
[398529626,1765793256268,5000.0,0.0001149,2]
[398529627,1765793272854,4471.29470123,0.0001149,2]
[398529628,1765793272877,257.74529877,0.0001149,2]
[398529629,1765793280678,5000.0,0.0001149,2]
[398529630,1765793305237,4742.26470123,0.0001149,2]
[398529631,1765793305261,257.73529877,0.0001149,2]
[398529632,1765793320481,150.0,7.112e-05,2]
[398529633,1765793320868,150.0,7.758e-05,2]
[398529634,1765793321760,150.0,8.405e-05,2]
[398529635,1765793322188,150.0,9.051e-05,2]
[398529636,1765793351338,5000.0,0.0001149,2]
[398529637,1765793374904,4142.27470123,0.0001149,2]
[398529638,1765793374936,857.72529877,0.0001149,2]
[398529639,1765793384804,-196.98111469,0.00011642,2]
[398529640,1765793384832,-300.0,0.00011697,2]
[398529641,1765793384860,-300.0,0.00011697,2]
[398529642,1765793384887,-1200.0,0.00011698,2]
[398529643,1765793384916,-500.0,0.00011698,2]
[398529644,1765793384944,-500.0,0.00011698,2]
[398529645,1765793384972,-454.61073366,0.00011698,2]
[398529646,1765793385000,-156.66967847,0.00011698,2]
[398529647,1765793385027,-198.02541624,0.00011698,2]
[398529648,1765793385056,-500.0,0.00011698,2]
[398529649,1765793385082,-500.0,0.00011698,2]
[398529650,1765793385110,-165.3371777,0.00011698,2]
[398529651,1765793387474,150.0,7.108e-05,2]
[398529652,1765793387898,150.0,7.754e-05,2]
[398529653,1765793388313,150.0,8.4e-05,2]
[398529654,1765793388616,-56.76175848,0.00011698,2]
[398529655,1765793388644,-439.23882933,0.00011698,2]
[398529656,1765793388673,-500.0,0.00011698,2]
[398529657,1765793388701,-500.0,0.00011698,2]
[398529658,1765793388730,-500.0,0.00011698,2]
[398529659,1765793388757,-500.0,0.00011698,2]
[398529660,1765793388785,-500.0,0.00011698,2]
[398529661,1765793388810,-165.20621247,0.00011698,2]
[398529662,1765793388838,-500.0,0.00011698,2]
[398529663,1765793388864,-373.22102146,0.00011698,2]
[398529664,1765793388892,-500.0,0.00011698,2]
[398529665,1765793388920,-431.15435652,0.00011698,2]
[398529666,1765793389101,150.0,9.046e-05,2]
[398529667,1765793390090,150.0,9.693e-05,2]
[398529668,1765793390310,150.0,0.00010339,2]
[398529669,1765793394294,-68.84564348,0.00011698,2]
[398529670,1765793394322,-500.0,0.00011698,2]
[398529671,1765793394351,-500.0,0.00011698,2]
[398529672,1765793394380,-500.0,0.00011698,2]
[398529673,1765793394408,-500.0,0.00011698,2]
[398529674,1765793394436,-500.0,0.00011698,2]
[398529675,1765793394474,-500.0,0.00011698,2]
[398529676,1765793394524,-500.0,0.00011698,2]
[398529677,1765793394569,-500.0,0.00011698,2]
[398529678,1765793394603,-500.0,0.00011698,2]
[398529679,1765793394633,-362.31871304,0.00011698,2]
[398529680,1765793401326,-5000.0,0.00011581,2]
[398529681,1765793401419,0.01,0.00011697,2]
[398529682,1765793408709,-152.4,0.0001,2]
[398529683,1765793408737,-299.99,0.00011697,2]
[398529684,1765793408767,-300.0,0.00011697,2]
[398529685,1765793408795,-273.0,0.00011697,2]
[398529686,1765793408825,-585.0,0.00011697,2]
[398529687,1765793408854,-300.0,0.00011697,2]
[398529689,1765793422915,5000.0,0.00011698,2]
[398529715,1765793432297,-509.11940839,0.00011698,2]
[398529716,1765793432308,-428.3542582,0.00011698,2]
[398529717,1765793432318,-437.35154581,0.00011842,2]
[398529718,1765793432737,622.5454787,0.00011697,2]
[398529719,1765793432765,500.0,0.00011697,2]
[398529720,1765793432822,56.6845213,0.00011697,2]
[398529721,1765793432845,443.3154787,0.00011697,2]
[398529722,1765793432882,250.04504803,0.00011697,2]
[398529723,1765793432932,500.0,0.00011697,2]
[398529724,1765793432978,500.0,0.00011697,2]
[398529725,1765793433023,500.0,0.00011697,2]
[398529726,1765793433062,500.0,0.00011697,2]
[398529727,1765793433101,500.0,0.00011697,2]
[398529728,1765793433145,500.0,0.00011697,2]
[398529729,1765793433430,500.0,0.00011697,2]
[398529730,1765793433490,500.0,0.00011697,2]
[398529731,1765793433537,500.0,0.00011697,2]
[398529732,1765793433586,500.0,0.00011697,2]
[398529733,1765793433638,500.0,0.00011697,2]
[398529734,1765793433702,500.0,0.00011697,2]
[398529863,1765793438340,-762.64845419,0.00011842,2]
[398529864,1765793438351,-500.0,0.00011845,2]
[398529865,1765793438361,-500.0,0.00011845,2]
[398529866,1765793438371,-500.0,0.00011845,2]
[398529867,1765793438380,-454.7357909,0.00011845,2]
[398529868,1765793438389,-400.0,0.0001189,2]
[398529869,1765793438398,-2375.77031708,0.00011931,2]
[398529870,1765793438408,-319.33496789,0.00011984,2]
[398529871,1765793438417,-800.0,0.00011984,2]
[398529872,1765793438426,-1000.0,0.00012131,2]
[398529873,1765793438436,-237.80306361,0.00012226,2]
[398529874,1765793438445,-428.04551451,0.00012226,2]
[398529875,1765793438454,-760.20883376,0.00012226,2]
[398529876,1765793438463,-351.78930353,0.00012226,2]
[398529877,1765793438472,-500.0,0.00012356,2]
[398529878,1765793438481,-329.7537297,0.000124,2]
[398529879,1765793438491,-165.4908484,0.000124,2]
[398529880,1765793438500,-165.4908484,0.000124,2]
[398529881,1765793438510,-302.2567273,0.000124,2]
[398529882,1765793438519,-285.86099976,0.00012466,2]
[398529883,1765793438528,-151.86466813,0.00012466,2]
[398529884,1765793438538,-273.35640264,0.00012466,2]
[398529885,1765793438547,-153.0,0.000125,2]
[398529886,1765793438556,-165.4908484,0.000125,2]
[398529887,1765793438566,-302.2567273,0.000125,2]
[398529888,1765793438576,-334.1672878,0.000125,2]
[398529889,1765793438586,-302.2567273,0.000125,2]
[398529890,1765793438596,-485.48097109,0.00012549,2]
[398529891,1765793438605,-401.6428734,0.00012623,2]
[398529892,1765793438614,-692.7934699,0.00012671,2]
[398529893,1765793438624,-165.4241396,0.000127,2]
[398529894,1765793438633,-290.5955616,0.000127,2]
[398529895,1765793438642,-165.5278063,0.000127,2]
[398529896,1765793438653,-402.22602827,0.00012738,3]
[398529897,1765793438662,-626.98865815,0.00012738,3]
[398529898,1765793438672,-332.76529333,0.00012738,3]
[398529899,1765793438682,-553.64373807,0.00012763,2]
[398529900,1765793438692,-81488.50338808,0.00012771,2]
[398530331,1765793453778,150.0,7.183e-05,2]
[398530332,1765793454177,150.0,7.836e-05,2]
[398530333,1765793454635,150.0,8.489e-05,2]
[398530334,1765793454957,150.0,9.142e-05,2]
[398530335,1765793455512,150.0,9.795e-05,2]
[398530336,1765793455794,150.03,0.00010448,2]
[398530337,1765793456217,175.03,0.00011101,2]
[398530338,1765793492627,150.0,5.2e-07,2]
[398530339,1765793493690,150.0,5.2e-07,2]
[398530340,1765793523698,150.0,7.187e-05,2]
[398530341,1765793524716,150.0,7.84e-05,2]
[398530342,1765793524811,150.0,8.494e-05,2]
[398530343,1765793524981,150.0,9.147e-05,2]
[398530344,1765793525422,150.0,9.8e-05,2]
[398530345,1765793542565,500.0,0.00011697,2]
[398530346,1765793542646,500.0,0.00011697,2]
[398530347,1765793542689,500.0,0.00011697,2]
[398530348,1765793542719,311.57120382,0.00011697,2]
[398530349,1765793542754,500.0,0.00011697,2]
[398530350,1765793542809,500.0,0.00011697,2]
[398530351,1765793542845,500.0,0.00011697,2]
[398530352,1765793560503,309.78858071,0.00011697,2]
[398530353,1765793582834,154.69,0.0001,2]
[398530354,1765793583118,154.69,0.000105,2]
[398530355,1765793583380,154.69,0.00011,2]
[398530356,1765793583689,154.69,0.000115,2]
[398530357,1765793641762,1007.97486437,0.00011654,2]
[398530358,1765793644819,154.69,0.0001,2]
[398530359,1765793645134,154.69,0.00011,2]
[398530360,1765793646117,3392.5353511,0.00011699,2]
[398530361,1765793646141,1607.4646489,0.00011699,2]
[398530362,1765793704130,154.69,0.0001,2]
[398530365,1765793763799,154.68,0.0001,2]
[398530366,1765793860436,5000.0,0.00011699,2]
[398530367,1765793908559,150.0,7.13e-05,2]
[398530368,1765793908955,150.0,7.778e-05,2]
[398530369,1765793909378,150.0,8.426e-05,2]
[398530370,1765793909776,150.0,9.074e-05,2]
[398530371,1765793910489,150.0,9.722e-05,2]
[398530372,1765793925800,172.3477318,5.78e-05,2]
[398530377,1765794070570,-1395.0922793,0.00011551,2]
[398530378,1765794088365,5000.0,0.00011699,2]
[398530379,1765794112796,2209.8254414,0.00011699,2]
[398530380,1765794112818,2790.1745586,0.00011699,2]
[398530381,1765794136038,5000.0,0.00011699,2]
[398530382,1765794152072,-300.0,0.00011868,2]
[398530383,1765794152099,-204.12871708,0.00011928,2]
[398530384,1765794152128,-1200.0,0.00011988,2]
[398530385,1765794152157,-300.0,0.00011988,2]
[398530386,1765794152184,-589.0,0.00011989,2]
[398530387,1765794152212,-300.0,0.00012354,2]
[398530388,1765794152241,-500.0,0.00012356,2]
[398530389,1765794152267,-792.79602845,0.00012484,2]
[398530390,1765794161566,-5000.0,0.00012359,2]
[398530391,1765794182338,158.42,0.0001,2]
[398530392,1765794208187,9841.59,0.00011651,2]
[398530393,1765794208213,1159.8917902,0.00011651,2]
[398530394,1765794229438,150.0,7.162e-05,2]
[398530395,1765794229762,150.0,7.813e-05,2]
[398530396,1765794230224,150.0,8.464e-05,2]
[398530397,1765794230628,150.0,9.115e-05,2]
[398530398,1765794230998,150.0,9.766e-05,2]
[398530399,1765794231429,163.48,0.00010417,2]
[398530400,1765794231858,190.73,0.00011069,2]
[398530401,1765794244064,158.41,0.0001,2]
[398530402,1765794250236,187.77,0.00011699,2]
[398530404,1765794300790,150.0,7.135e-05,2]
[398530405,1765794301211,150.0,7.783e-05,2]
[398530406,1765794301612,150.0,8.432e-05,2]
[398530407,1765794302048,150.0,9.08e-05,2]
[398530408,1765794302511,150.0,9.729e-05,2]
[398530409,1765794302973,150.0,0.00010378,2]
[398530413,1765794367482,150.0,7.125e-05,2]
[398530414,1765794367884,150.0,7.772e-05,2]
[398530416,1765794453639,3073.64709622,0.00011699,2]
[398530418,1765794568873,5000.0,0.00011699,2]
[398530454,1765794632674,-269.10415198,0.00011752,2]
[398530455,1765794632706,-826.86494536,0.00011752,2]
[398530490,1765794638554,-104.03090266,0.00011752,2]
[398530491,1765794638563,-5000.0,0.00011753,2]
[398530492,1765794638573,-135.14672236,0.00011753,2]
[398530493,1765794638584,-449.31152088,0.00011753,2]
[398530494,1765794638595,-1.54175676,0.00011753,2]
[398530495,1765794638604,-2306.02913626,0.00011872,2]
[398530509,1765794640626,-121.96653194,0.00011872,2]
[398530510,1765794640635,-200.04614274,0.00012052,2]
[398530511,1765794640645,-300.0,0.00012109,2]
[398530512,1765794640655,-300.0,0.0001211,2]
[398530513,1765794640666,-209.62494376,0.0001211,2]
[398530514,1765794640677,-90.37505624,0.0001211,2]
[398530515,1765794640686,-300.0,0.0001211,2]
[398530516,1765794640696,-155.0,0.0001211,2]
[398530517,1765794640706,-328.43141958,0.00012111,2]
[398530518,1765794640716,-871.56858042,0.00012111,2]
[398530519,1765794640726,-28.43141958,0.00012111,2]
[398530558,1765794643532,-471.56858042,0.00012111,2]
[398530560,1765794643541,-500.0,0.00012111,2]
[398530562,1765794643550,-182.02668778,0.00012111,2]
[398530564,1765794643559,-292.27714077,0.00012131,2]
[398530566,1765794643568,-220.78817753,0.00012131,2]
[398530568,1765794643577,-2415.85035228,0.00012228,2]
[398530634,1765794689741,150.0,7.085e-05,2]
[398530635,1765794689950,150.0,7.729e-05,2]
[398530636,1765794690373,150.0,8.373e-05,2]
[398530637,1765794690783,150.0,9.017e-05,2]
[398530638,1765794692057,150.0,9.661e-05,2]
[398530639,1765794829448,3015.9171189,0.00011473,2]
[398530640,1765794861843,5000.0,0.00011491,2]
[398530641,1765794885836,1984.0928811,0.00011491,2]
[398530642,1765794885859,3015.9071189,0.00011491,2]
[398530643,1765794902316,159.68,0.000101,2]
[398530644,1765794909073,5000.0,0.00011491,2]
[398530645,1765794932247,1824.4228811,0.00011491,2]
[398530646,1765794932270,3175.5771189,0.00011491,2]
[398530647,1765794947356,150.0,7.089e-05,2]
[398530648,1765794947753,150.0,7.733e-05,2]
[398530649,1765794948172,150.0,8.378e-05,2]
[398530650,1765794948575,168.7,9.022e-05,2]
[398530651,1765794949007,210.88,9.667e-05,2]
[398530652,1765794949413,253.06,0.00010311,2]
[398530654,1765794949814,295.23,0.00010956,2]
[398530656,1765794955090,5000.0,0.00011491,2]
[398530657,1765794964677,155.56,0.000101,2]
[398530658,1765794965084,155.56,0.000107,2]
[398530659,1765794966113,135.4428811,0.000112,2]
[398530660,1765794966137,20.1171189,0.000112,2]
[398530661,1765794978402,5000.0,0.00011491,2]
[398530662,1765794978939,658.5596599,0.00011325,2]
[398530663,1765795001784,4321.3332212,0.00011491,2]
[398530664,1765795001805,678.6667788,0.00011491,2]
[398530665,1765795019262,150.0,7.392e-05,2]
[398530666,1765795019637,150.0,8.064e-05,2]
[398530667,1765795020045,150.0,8.736e-05,2]
[398530668,1765795020453,194.62,9.408e-05,2]
[398530669,1765795020892,243.27,0.0001008,2]
[398530670,1765795021290,291.93,0.00010752,2]
[398530671,1765795021786,340.58,0.00011424,2]
[398530672,1765795024877,5000.0,0.00011491,2]
[398530673,1765795025252,155.4,0.000101,2]
[398530674,1765795025981,155.4,0.000108,2]
[398530675,1765795026120,155.4,0.000114,2]
[398530676,1765795028542,-366.91748475,0.00011519,2]
[398530677,1765795028572,-1200.0,0.00011519,2]
[398530678,1765795028606,-287.0,0.00011519,2]
[398530679,1765795028635,-452.0,0.00011519,2]
[398530680,1765795028662,-300.0,0.00011519,2]
[398530681,1765795057874,-5000.0,0.00011404,2]
[398530682,1765795075128,-5000.0,0.00011404,2]
[398530683,1765795081875,-3875.1730043,0.0001152,2]
[398530684,1765795084919,-300.0,0.00011519,2]
[398530685,1765795084946,-283.0,0.00011519,2]
[398530686,1765795085045,-8834.01,0.0001152,2]
[398530687,1765795085325,153.4,0.0001,2]
[398530688,1765795093611,150.0,7.387e-05,2]
[398530689,1765795093901,150.0,8.058e-05,2]
[398530690,1765795094316,185.96,8.73e-05,2]
[398530691,1765795094642,-153.4,0.000104,2]
[398530692,1765795094669,-153.4,0.000109,2]
[398530693,1765795094702,-153.4,0.000113,2]
[398530694,1765795094870,247.94,9.401e-05,2]
[398530695,1765795094884,-9079.61,0.00011304,2]
[398530696,1765795098368,-309.93,0.00010073,2]
[398530697,1765795098397,-4380.15,0.00010296,2]
[398530698,1765795098442,-619.85,0.00010296,2]
[398530699,1765795108964,-371.92,0.00010745,2]
[398530700,1765795109131,-9256.17,0.00011304,2]
[398530701,1765795118580,-4400.7878922,0.00011304,2]
[398530702,1765795118650,-1198.4342156,0.00011404,2]
[398530703,1765795126638,-5000.0,0.00011191,2]
[398530704,1765795126705,-0.01,0.00011404,2]
[398530705,1765795133665,-2528.5557844,0.00011404,2]
[398530706,1765795133698,-433.9,0.00011416,2]
[398530707,1765795133730,-1333.0438208,0.0001152,2]
[398530708,1765795133798,-1409.0107896,0.0001152,2]
[398530709,1765795142420,5000.0,0.000116,2]
[398530710,1765795146698,152.41,0.0001,2]
[398530711,1765795146979,152.41,0.000103,2]
[398530712,1765795147322,152.41,0.000105,2]
[398530713,1765795148264,152.41,0.000108,2]
[398530714,1765795148658,152.41,0.00011,2]
[398530715,1765795148953,152.41,0.000113,2]
[398530716,1765795149243,152.41,0.000115,2]
[398530717,1765795158723,3709.97529079,0.000116,2]
[398530718,1765795167141,223.16470921,0.000116,2]
[398530719,1765795167772,150.0,7.384e-05,2]
[398530720,1765795168239,206.33,8.056e-05,2]
[398530721,1765795168637,309.5,8.727e-05,2]
[398530722,1765795169430,412.67,9.398e-05,2]
[398530723,1765795179659,-4776.83529079,0.000116,2]
[398530724,1765795183245,446.33941842,0.0001007,2]
[398530725,1765795183329,-69.49058158,0.0001007,2]
[398530726,1765795183391,619.0,0.00010741,2]
[398530727,1765795183721,722.17,0.00011412,2]
[398530728,1765795190998,5000.0,0.000116,2]
[398530729,1765795206791,1709.16332832,0.000116,2]
[398530731,1765795211315,154.57,0.0001,2]
[398530732,1765795212328,154.57,0.000102,2]
[398530733,1765795212711,154.57,0.000104,2]
[398530734,1765795213125,154.57,0.000107,2]
[398530735,1765795213384,154.57,0.000109,2]
[398530736,1765795213713,154.57,0.000111,2]
[398530737,1765795214754,883.27550852,0.000116,2]
[398530738,1765795214783,154.57,0.000113,2]
[398530749,1765795256709,150.0,7.4e-05,2]
[398530750,1765795257137,221.78,8.072e-05,2]
[398530751,1765795257524,332.68,8.745e-05,2]
[398530752,1765795257922,443.57,9.418e-05,2]
[398530753,1765795258348,554.46,0.0001009,2]
[398530754,1765795258759,665.35,0.00010763,2]
[398530755,1765795259167,776.25,0.00011436,2]
[398530756,1765795264517,-4116.72449148,0.000116,2]
[398530758,1765795267176,155.29,0.0001,2]
[398530759,1765795267477,155.29,0.000103,2]
[398530760,1765795267822,155.29,0.000107,2]
[398530761,1765795268177,155.29,0.00011,2]
[398530762,1765795268534,155.29,0.000113,2]
[398530765,1765795281939,990.11101704,0.000116,2]
[398530766,1765795281965,4009.88898296,0.000116,2]
[398530772,1765795304870,5000.0,0.000116,2]